[Event "*** Titled Tuesday Blitz"]
[Site "Chess.com"]
[Date "2021.02.09"]
[Round "6"]
[White "Anurag328"]
[Black "youngKID"]
[Result "0-1"]
[WhiteElo "2649"]
[BlackElo "2845"]
[TimeControl "180+1"]
[EndTime "11:08:34 PST"]
[Termination "youngKID won by resignation"]

1. c4 {[%clk 0:03:00.9]} 1... e5 {[%clk 0:02:58.7]} 2. g3 {[%clk 0:03:01.2]}
2... f5 {[%clk 0:02:58.3]} 3. d4 {[%clk 0:02:40.3]} 3... e4 {[%clk 0:02:29.9]}
4. Nc3 {[%clk 0:02:35.4]} 4... Nf6 {[%clk 0:02:24.9]} 5. Nh3 {[%clk 0:02:19.8]}
5... Bb4 {[%clk 0:02:20.5]} 6. Qb3 {[%clk 0:02:18.1]} 6... c5 {[%clk 0:02:16.3]}
7. dxc5 {[%clk 0:02:03.9]} 7... Na6 {[%clk 0:02:09.2]} 8. Bg5 {[%clk 0:01:58]}
8... h6 {[%clk 0:02:02.4]} 9. Bxf6 {[%clk 0:00:43.1]} 9... Qxf6 {[%clk
0:02:03.3]} 10. Nf4 {[%clk 0:00:43.6]} 10... Bxc3+ {[%clk 0:01:52.2]} 11. Qxc3
{[%clk 0:00:44.5]} 11... Qxc3+ {[%clk 0:01:51.2]} 12. bxc3 {[%clk 0:00:45.4]}
12... Nxc5 {[%clk 0:01:48.9]} 13. Nd5 {[%clk 0:00:46.1]} 13... Kf7 {[%clk
0:01:44.4]} 14. Bh3 {[%clk 0:00:45.1]} 14... d6 {[%clk 0:01:43]} 15. O-O {[%clk
0:00:41.1]} 15... g6 {[%clk 0:01:26.1]} 16. f3 {[%clk 0:00:39.1]} 16... Kg7
{[%clk 0:01:24.1]} 17. fxe4 {[%clk 0:00:34.2]} 17... Nxe4 {[%clk 0:01:25]} 18.
g4 {[%clk 0:00:35.1]} 18... fxg4 {[%clk 0:01:15.8]} 19. Bg2 {[%clk 0:00:35]}
19... Bf5 {[%clk 0:01:06.7]} 20. Ne3 {[%clk 0:00:24.1]} 20... Rhf8 {[%clk
0:00:52.4]} 21. Bxe4 {[%clk 0:00:20.4]} 21... Bxe4 {[%clk 0:00:52.4]} 22. Rad1
{[%clk 0:00:21]} 22... Rxf1+ {[%clk 0:00:45.1]} 23. Kxf1 {[%clk 0:00:21.9]}
23... h5 {[%clk 0:00:41.5]} 24. Rxd6 {[%clk 0:00:21.9]} 24... Rf8+ {[%clk
0:00:41.4]} 25. Ke1 {[%clk 0:00:19.3]} 25... Rf6 {[%clk 0:00:39.8]} 26. Rd7+
{[%clk 0:00:19.2]} 26... Rf7 {[%clk 0:00:40.3]} 27. Rd4 {[%clk 0:00:19.9]} 27...
Bh1 {[%clk 0:00:34.1]} 28. c5 {[%clk 0:00:20.2]} 28... Kh6 {[%clk 0:00:33.9]}
29. Nc4 {[%clk 0:00:20.5]} 29... Re7 {[%clk 0:00:30.2]} 30. Kf2 {[%clk
0:00:19.4]} 30... Kg5 {[%clk 0:00:29.1]} 31. Rd1 {[%clk 0:00:09.8]} 31... Bc6
{[%clk 0:00:26.8]} 32. Na5 {[%clk 0:00:09.3]} 32... Re5 {[%clk 0:00:25.6]} 33.
Nb3 {[%clk 0:00:07.3]} 33... h4 {[%clk 0:00:24.2]} 34. Rd6 {[%clk 0:00:08]}
34... Rf5+ {[%clk 0:00:20]} 35. Ke3 {[%clk 0:00:08.5]} 35... g3 {[%clk 0:00:19]}
36. hxg3 {[%clk 0:00:09.2]} 36... hxg3 {[%clk 0:00:18.4]} 37. Rd1 {[%clk
0:00:06.5]} 37... g2 {[%clk 0:00:17.9]} 38. Nd2 {[%clk 0:00:07.2]} 38... Kg4
{[%clk 0:00:16.8]} 0-1

[Event "*** Titled Tuesday Blitz"]
[Site "Chess.com"]
[Date "2021.02.09"]
[Round "6"]
[White "JQuiroga18"]
[Black "m_ezat"]
[Result "0-1"]
[WhiteElo "2419"]
[BlackElo "2558"]
[TimeControl "180+1"]
[EndTime "11:08:35 PST"]
[Termination "m_ezat won on time"]

1. e4 {[%clk 0:03:00.9]} 1... e5 {[%clk 0:02:57.2]} 2. Nf3 {[%clk 0:03:00.7]}
2... Nc6 {[%clk 0:02:57.4]} 3. d4 {[%clk 0:03:00.9]} 3... exd4 {[%clk
0:02:55.9]} 4. Nxd4 {[%clk 0:03:01.1]} 4... Qh4 {[%clk 0:02:56.6]} 5. Qd3 {[%clk
0:02:56.2]} 5... Nf6 {[%clk 0:02:55.3]} 6. Nd2 {[%clk 0:02:42.7]} 6... Bc5
{[%clk 0:02:48.6]} 7. g3 {[%clk 0:02:39.6]} 7... Qg4 {[%clk 0:02:48.1]} 8. c3
{[%clk 0:02:33.7]} 8... d5 {[%clk 0:02:42]} 9. Nxc6 {[%clk 0:02:30]} 9... bxc6
{[%clk 0:02:41.3]} 10. Bg2 {[%clk 0:02:28.4]} 10... a5 {[%clk 0:02:36.3]} 11.
exd5 {[%clk 0:02:22.9]} 11... cxd5 {[%clk 0:02:35.7]} 12. O-O {[%clk 0:02:17.1]}
12... O-O {[%clk 0:02:35.5]} 13. Re1 {[%clk 0:02:16.4]} 13... Qh5 {[%clk
0:02:32.6]} 14. Nb3 {[%clk 0:02:07.9]} 14... Ng4 {[%clk 0:02:27.5]} 15. Nxc5
{[%clk 0:02:00.3]} 15... Bf5 {[%clk 0:02:25.4]} 16. Qf3 {[%clk 0:01:51.9]} 16...
Qxh2+ {[%clk 0:02:24.1]} 17. Kf1 {[%clk 0:01:52]} 17... Qh5 {[%clk 0:02:24.7]}
18. Qf4 {[%clk 0:01:47.5]} 18... Rfe8 {[%clk 0:02:08.2]} 19. Bd2 {[%clk
0:01:46.8]} 19... h6 {[%clk 0:02:06.4]} 20. Rxe8+ {[%clk 0:01:37.2]} 20... Rxe8
{[%clk 0:02:05.4]} 21. Re1 {[%clk 0:01:37.6]} 21... Rb8 {[%clk 0:02:04.8]} 22.
b3 {[%clk 0:01:36.3]} 22... Rb6 {[%clk 0:02:00.6]} 23. Qxc7 {[%clk 0:01:22.9]}
23... Rf6 {[%clk 0:01:57.8]} 24. Re8+ {[%clk 0:00:57.2]} 24... Kh7 {[%clk
0:01:57]} 25. Ke1 {[%clk 0:00:35.3]} 25... Bc2 {[%clk 0:01:33.1]} 26. Bf4 {[%clk
0:00:33.4]} 26... Ne5 {[%clk 0:01:25.8]} 27. g4 {[%clk 0:00:17.7]} 27... Qxg4
{[%clk 0:01:20.4]} 28. f3 {[%clk 0:00:17.9]} 28... Nxf3+ {[%clk 0:01:10.3]} 29.
Bxf3 {[%clk 0:00:17.2]} 29... Qxf3 {[%clk 0:01:10.5]} 30. Kd2 {[%clk 0:00:16.1]}
30... Qd1+ {[%clk 0:01:07.4]} 31. Ke3 {[%clk 0:00:16.3]} 31... Qe1+ {[%clk
0:00:57.2]} 32. Kd4 {[%clk 0:00:15.5]} 32... Qxe8 {[%clk 0:00:54.1]} 33. Be5
{[%clk 0:00:13.4]} 33... Rf3 {[%clk 0:00:40.4]} 34. Nd7 {[%clk 0:00:13.5]} 34...
f6 {[%clk 0:00:37]} 35. Nxf6+ {[%clk 0:00:10.7]} 35... Rxf6 {[%clk 0:00:37.6]}
36. Bxf6 {[%clk 0:00:11]} 36... Qe4+ {[%clk 0:00:37.1]} 37. Kc5 {[%clk
0:00:11.1]} 37... Qe3+ {[%clk 0:00:36.7]} 38. Kb5 {[%clk 0:00:09.1]} 38... Bd3+
{[%clk 0:00:34.6]} 39. Kxa5 {[%clk 0:00:08.4]} 39... Qg1 {[%clk 0:00:32.1]} 40.
Bd4 {[%clk 0:00:07.4]} 40... Qg6 {[%clk 0:00:31]} 41. Qb6 {[%clk 0:00:05.3]}
41... Qe8 {[%clk 0:00:28.9]} 42. a4 {[%clk 0:00:03.8]} 42... h5 {[%clk
0:00:28.3]} 43. Qc7 {[%clk 0:00:01]} 43... Qg6 {[%clk 0:00:27.2]} 0-1

[Event "*** Titled Tuesday Blitz"]
[Site "Chess.com"]
[Date "2021.02.09"]
[Round "6"]
[White "CakeinSpace2002"]
[Black "SaraciNderim"]
[Result "0-1"]
[WhiteElo "2355"]
[BlackElo "2779"]
[TimeControl "180+1"]
[EndTime "11:08:36 PST"]
[Termination "SaraciNderim won by resignation"]

1. c4 {[%clk 0:03:00.9]} 1... e5 {[%clk 0:02:50.8]} 2. Nc3 {[%clk 0:03:00.7]}
2... Nf6 {[%clk 0:02:48.9]} 3. g3 {[%clk 0:03:00.8]} 3... Bc5 {[%clk 0:02:45.9]}
4. Bg2 {[%clk 0:02:58.5]} 4... O-O {[%clk 0:02:45.8]} 5. e3 {[%clk 0:02:53]}
5... d6 {[%clk 0:02:41.9]} 6. Nge2 {[%clk 0:02:53.3]} 6... a6 {[%clk 0:02:40.7]}
7. O-O {[%clk 0:02:53.1]} 7... h6 {[%clk 0:02:38.9]} 8. d4 {[%clk 0:02:53]} 8...
Ba7 {[%clk 0:02:38.9]} 9. h3 {[%clk 0:02:52.8]} 9... Nc6 {[%clk 0:02:37.6]} 10.
b3 {[%clk 0:02:50.6]} 10... Re8 {[%clk 0:02:36]} 11. Bb2 {[%clk 0:02:46.3]}
11... exd4 {[%clk 0:02:36.1]} 12. Nxd4 {[%clk 0:02:45.9]} 12... Nxd4 {[%clk
0:02:36.3]} 13. exd4 {[%clk 0:02:46.8]} 13... c6 {[%clk 0:02:36.6]} 14. Qd2
{[%clk 0:02:44.7]} 14... Bf5 {[%clk 0:02:34]} 15. Rfe1 {[%clk 0:02:43.7]} 15...
Qd7 {[%clk 0:02:31.6]} 16. Kh2 {[%clk 0:02:43.7]} 16... d5 {[%clk 0:02:28.6]}
17. c5 {[%clk 0:02:38.1]} 17... Rad8 {[%clk 0:02:23.5]} 18. Rxe8+ {[%clk
0:02:30]} 18... Rxe8 {[%clk 0:02:23.3]} 19. Re1 {[%clk 0:02:30.9]} 19... Ne4
{[%clk 0:02:19.3]} 20. Nxe4 {[%clk 0:02:29.4]} 20... Bxe4 {[%clk 0:02:16.2]} 21.
Bxe4 {[%clk 0:02:26.4]} 21... dxe4 {[%clk 0:02:14.1]} 22. Rd1 {[%clk 0:02:14.7]}
22... Qd5 {[%clk 0:02:11.6]} 23. Qf4 {[%clk 0:02:01.1]} 23... Bb8 {[%clk
0:02:02.1]} 24. Qg4 {[%clk 0:02:01.1]} 24... e3 {[%clk 0:01:54.4]} 25. f4 {[%clk
0:01:52.7]} 25... e2 {[%clk 0:01:47]} 26. Re1 {[%clk 0:01:51.8]} 26... f5 {[%clk
0:01:42.6]} 27. Qh5 {[%clk 0:01:49.6]} 27... Qf7 {[%clk 0:01:36.7]} 28. Qxf7+
{[%clk 0:01:44.3]} 28... Kxf7 {[%clk 0:01:37.6]} 29. Kg2 {[%clk 0:01:45.2]}
29... g5 {[%clk 0:01:34.5]} 30. Kf3 {[%clk 0:01:45]} 30... gxf4 {[%clk 0:01:32]}
31. gxf4 {[%clk 0:01:45.9]} 31... Re4 {[%clk 0:01:32.1]} 32. Rxe2 {[%clk
0:01:42.9]} 32... Rxe2 {[%clk 0:01:31.9]} 33. Kxe2 {[%clk 0:01:42.9]} 33... Bxf4
{[%clk 0:01:32.4]} 34. Kf3 {[%clk 0:01:40.9]} 34... Bg5 {[%clk 0:01:32.4]} 35.
Bc3 {[%clk 0:01:38.6]} 35... Ke6 {[%clk 0:01:32.3]} 36. Ke2 {[%clk 0:01:30.1]}
36... Kd5 {[%clk 0:01:31.1]} 37. Kd3 {[%clk 0:01:30.6]} 37... f4 {[%clk
0:01:31.3]} 38. Be1 {[%clk 0:01:31.1]} 38... f3 {[%clk 0:01:31.1]} 39. Bf2
{[%clk 0:01:30.3]} 39... Bf4 {[%clk 0:01:30.4]} 40. h4 {[%clk 0:01:27.8]} 40...
h5 {[%clk 0:01:28.4]} 41. a3 {[%clk 0:01:26.1]} 41... a5 {[%clk 0:01:27.4]} 42.
a4 {[%clk 0:01:18.8]} 42... Bh6 {[%clk 0:01:23.7]} 43. Be3 {[%clk 0:01:14.7]}
43... Bg7 {[%clk 0:01:23.8]} 44. Bf2 {[%clk 0:01:13.1]} 44... Bf6 {[%clk
0:01:23.8]} 45. Be1 {[%clk 0:00:53.1]} 45... Bxd4 {[%clk 0:01:21.9]} 46. Bxa5
{[%clk 0:00:53.2]} 46... Bxc5 {[%clk 0:01:20.3]} 47. Bd2 {[%clk 0:00:52.5]}
47... Be7 {[%clk 0:01:11.2]} 48. Be1 {[%clk 0:00:50.1]} 48... Bc5 {[%clk
0:01:11.1]} 49. Bd2 {[%clk 0:00:49.1]} 49... Bf2 {[%clk 0:01:08.3]} 50. Bg5
{[%clk 0:00:47.5]} 50... Ke5 {[%clk 0:01:07.9]} 51. b4 {[%clk 0:00:44.3]} 51...
Kf5 {[%clk 0:01:08.2]} 52. b5 {[%clk 0:00:39.7]} 52... cxb5 {[%clk 0:01:07.6]}
53. axb5 {[%clk 0:00:40.6]} 53... Kg4 {[%clk 0:01:07.7]} 54. Ke4 {[%clk
0:00:40.7]} 54... Bxh4 {[%clk 0:01:04]} 55. Bxh4 {[%clk 0:00:41]} 55... Kxh4
{[%clk 0:01:04.1]} 56. Kxf3 {[%clk 0:00:41.1]} 56... Kg5 {[%clk 0:01:04.5]} 57.
b6 {[%clk 0:00:40.1]} 57... Kf5 {[%clk 0:01:04.9]} 58. Kg3 {[%clk 0:00:40.3]}
58... Ke5 {[%clk 0:01:01.6]} 59. Kh4 {[%clk 0:00:40.9]} 59... Kd6 {[%clk
0:01:02.5]} 60. Kxh5 {[%clk 0:00:41.8]} 60... Kc6 {[%clk 0:01:03.4]} 61. Kg4
{[%clk 0:00:42.7]} 61... Kxb6 {[%clk 0:01:04.3]} 62. Kf3 {[%clk 0:00:43.3]}
62... Kc5 {[%clk 0:01:04.9]} 63. Ke3 {[%clk 0:00:43.9]} 63... Kc4 {[%clk
0:01:05.1]} 64. Kd2 {[%clk 0:00:44.5]} 64... Kb3 {[%clk 0:01:05.5]} 65. Kc1
{[%clk 0:00:45.4]} 65... b5 {[%clk 0:01:04.2]} 66. Kb1 {[%clk 0:00:46.2]} 66...
b4 {[%clk 0:01:03.3]} 67. Ka1 {[%clk 0:00:47]} 67... Kc2 {[%clk 0:01:03.4]} 68.
Ka2 {[%clk 0:00:47.1]} 68... b3+ {[%clk 0:01:04.3]} 0-1

[Event "*** Titled Tuesday Blitz"]
[Site "Chess.com"]
[Date "2021.02.09"]
[Round "6"]
[White "Kobalia"]
[Black "mishanick"]
[Result "0-1"]
[WhiteElo "2685"]
[BlackElo "2927"]
[TimeControl "180+1"]
[EndTime "11:08:37 PST"]
[Termination "mishanick won on time"]

1. e4 {[%clk 0:03:00.9]} 1... c5 {[%clk 0:02:57.2]} 2. Nf3 {[%clk 0:03:00.7]}
2... d6 {[%clk 0:02:57.7]} 3. Bb5+ {[%clk 0:03:00.6]} 3... Nd7 {[%clk
0:02:57.5]} 4. O-O {[%clk 0:03:00]} 4... a6 {[%clk 0:02:56.5]} 5. Bd3 {[%clk
0:03:00.2]} 5... Ngf6 {[%clk 0:02:56.3]} 6. c3 {[%clk 0:03:00.3]} 6... b5 {[%clk
0:02:56]} 7. Bc2 {[%clk 0:03:00.6]} 7... Bb7 {[%clk 0:02:56.4]} 8. Qe2 {[%clk
0:03:00.8]} 8... g6 {[%clk 0:02:53.1]} 9. d4 {[%clk 0:03:00.3]} 9... Bg7 {[%clk
0:02:41.6]} 10. Re1 {[%clk 0:02:59.7]} 10... e5 {[%clk 0:02:28.8]} 11. dxe5
{[%clk 0:02:54.8]} 11... dxe5 {[%clk 0:02:29.7]} 12. c4 {[%clk 0:02:55]} 12...
b4 {[%clk 0:02:29.3]} 13. Nbd2 {[%clk 0:02:52.2]} 13... O-O {[%clk 0:02:27.9]}
14. Nf1 {[%clk 0:02:52.1]} 14... Nh5 {[%clk 0:02:24.4]} 15. g3 {[%clk
0:02:50.1]} 15... Nb8 {[%clk 0:02:19.7]} 16. Ne3 {[%clk 0:02:48.5]} 16... Nc6
{[%clk 0:02:19.7]} 17. Nd5 {[%clk 0:02:48.5]} 17... Nd4 {[%clk 0:02:19.2]} 18.
Nxd4 {[%clk 0:02:48.2]} 18... exd4 {[%clk 0:02:17.7]} 19. e5 {[%clk 0:02:37.1]}
19... Bxd5 {[%clk 0:01:54]} 20. cxd5 {[%clk 0:02:35.4]} 20... Qxd5 {[%clk
0:01:54.3]} 21. f4 {[%clk 0:02:10.9]} 21... Rae8 {[%clk 0:01:19.3]} 22. Be4
{[%clk 0:02:01.8]} 22... Qe6 {[%clk 0:01:09.5]} 23. g4 {[%clk 0:01:54.5]} 23...
Nxf4 {[%clk 0:01:08.8]} 24. Bxf4 {[%clk 0:01:53.6]} 24... Bxe5 {[%clk
0:01:09.5]} 25. Bxe5 {[%clk 0:01:38]} 25... Qxe5 {[%clk 0:01:09.8]} 26. Bd3
{[%clk 0:01:38.1]} 26... Qf4 {[%clk 0:00:56.1]} 27. Qg2 {[%clk 0:01:32.7]} 27...
Re3 {[%clk 0:00:56.5]} 28. Bxa6 {[%clk 0:01:29.8]} 28... d3 {[%clk 0:00:55.8]}
29. Rxe3 {[%clk 0:01:20.7]} 29... Qxe3+ {[%clk 0:00:56.7]} 30. Qf2 {[%clk
0:01:20.9]} 30... Qe4 {[%clk 0:00:57.3]} 31. h3 {[%clk 0:00:34.1]} 31... c4
{[%clk 0:00:41.3]} 32. Qc5 {[%clk 0:00:33.7]} 32... Rd8 {[%clk 0:00:33.3]} 33.
Bxc4 {[%clk 0:00:28.2]} 33... d2 {[%clk 0:00:32.9]} 34. Rd1 {[%clk 0:00:11]}
34... Qe1+ {[%clk 0:00:28.3]} 35. Kg2 {[%clk 0:00:10.5]} 35... Qxd1 {[%clk
0:00:27.2]} 36. Bxf7+ {[%clk 0:00:07.9]} 36... Kxf7 {[%clk 0:00:22.7]} 37. Qc7+
{[%clk 0:00:07.8]} 37... Ke6 {[%clk 0:00:22.2]} 38. Qc6+ {[%clk 0:00:05]} 38...
Ke5 {[%clk 0:00:21.2]} 39. Qc5+ {[%clk 0:00:03.4]} 39... Ke4 {[%clk 0:00:20]}
40. Qc4+ {[%clk 0:00:01.5]} 40... Rd4 {[%clk 0:00:19.5]} 41. Qe6+ {[%clk
0:00:01.1]} 41... Kd3 {[%clk 0:00:19.3]} 0-1

[Event "*** Titled Tuesday Blitz"]
[Site "Chess.com"]
[Date "2021.02.09"]
[Round "6"]
[White "OhanyanEminChess"]
[Black "superchess02"]
[Result "0-1"]
[WhiteElo "2622"]
[BlackElo "2792"]
[TimeControl "180+1"]
[EndTime "11:08:37 PST"]
[Termination "superchess02 won on time"]

1. e4 {[%clk 0:02:58.6]} 1... c5 {[%clk 0:02:58.9]} 2. Nf3 {[%clk 0:02:58.6]}
2... d6 {[%clk 0:02:59.2]} 3. d4 {[%clk 0:02:55.7]} 3... cxd4 {[%clk 0:03:00.1]}
4. Nxd4 {[%clk 0:02:56.6]} 4... Nf6 {[%clk 0:03:00.7]} 5. Nc3 {[%clk 0:02:57.2]}
5... a6 {[%clk 0:03:01.3]} 6. Be3 {[%clk 0:02:57.3]} 6... e6 {[%clk 0:03:01.1]}
7. g4 {[%clk 0:02:56.9]} 7... b5 {[%clk 0:03:00.9]} 8. g5 {[%clk 0:02:55.5]}
8... Nfd7 {[%clk 0:03:00.7]} 9. h4 {[%clk 0:02:54.4]} 9... Bb7 {[%clk 0:03:00]}
10. a3 {[%clk 0:02:46.7]} 10... Nc6 {[%clk 0:02:59.8]} 11. Rg1 {[%clk
0:02:43.4]} 11... Rc8 {[%clk 0:02:56.9]} 12. h5 {[%clk 0:02:41.3]} 12... g6
{[%clk 0:02:51.6]} 13. Rh1 {[%clk 0:02:41.1]} 13... Bg7 {[%clk 0:02:46.8]} 14.
hxg6 {[%clk 0:02:35.8]} 14... hxg6 {[%clk 0:02:47.7]} 15. Rxh8+ {[%clk
0:02:36.7]} 15... Bxh8 {[%clk 0:02:47.5]} 16. f4 {[%clk 0:02:37.6]} 16... Nc5
{[%clk 0:02:37.6]} 17. Qd2 {[%clk 0:02:29.3]} 17... Nxd4 {[%clk 0:01:23.5]} 18.
Bxd4 {[%clk 0:02:28.7]} 18... e5 {[%clk 0:01:24.1]} 19. Bxc5 {[%clk 0:01:46]}
19... dxc5 {[%clk 0:01:20.6]} 20. Qh2 {[%clk 0:01:37.4]} 20... Bg7 {[%clk
0:01:19.7]} 21. Bh3 {[%clk 0:01:18.5]} 21... Rc6 {[%clk 0:00:51.8]} 22. Nd5
{[%clk 0:01:11.5]} 22... exf4 {[%clk 0:00:38.6]} 23. O-O-O {[%clk 0:01:08.6]}
23... Qxg5 {[%clk 0:00:34]} 24. Qd2 {[%clk 0:00:40.9]} 24... Bd4 {[%clk
0:00:19.7]} 25. Kb1 {[%clk 0:00:07.5]} 25... Kf8 {[%clk 0:00:18.7]} 26. c3
{[%clk 0:00:07.2]} 26... Be5 {[%clk 0:00:18.7]} 27. Qf2 {[%clk 0:00:05.2]} 27...
Kg7 {[%clk 0:00:17.1]} 28. Rg1 {[%clk 0:00:05.1]} 28... Qh6 {[%clk 0:00:17.2]}
29. Bf5 {[%clk 0:00:04.8]} 29... Rd6 {[%clk 0:00:15.5]} 30. Ne7 {[%clk
0:00:04.4]} 30... Rf6 {[%clk 0:00:13]} 31. Bg4 {[%clk 0:00:03.3]} 31... Bxe4+
{[%clk 0:00:09]} 32. Ka1 {[%clk 0:00:04]} 32... Bd6 {[%clk 0:00:09.6]} 33. Nc8
{[%clk 0:00:03.5]} 33... Bf8 {[%clk 0:00:09.2]} 34. Re1 {[%clk 0:00:03.9]} 34...
Bb7 {[%clk 0:00:09.3]} 35. Re8 {[%clk 0:00:02.8]} 35... Qh1+ {[%clk 0:00:08.6]}
36. Re1 {[%clk 0:00:03.1]} 36... Qg2 {[%clk 0:00:08.7]} 0-1

[Event "*** Titled Tuesday Blitz"]
[Site "Chess.com"]
[Date "2021.02.09"]
[Round "6"]
[White "Yaryi_sergey"]
[Black "Klavdia_Nik"]
[Result "1-0"]
[WhiteElo "2466"]
[BlackElo "2058"]
[TimeControl "180+1"]
[EndTime "11:08:37 PST"]
[Termination "Yaryi_sergey won on time"]

1. e4 {[%clk 0:03:00.9]} 1... e6 {[%clk 0:02:51.5]} 2. Nc3 {[%clk 0:02:59.3]}
2... d5 {[%clk 0:02:44.4]} 3. d3 {[%clk 0:02:58.6]} 3... dxe4 {[%clk 0:02:35.5]}
4. dxe4 {[%clk 0:02:58.1]} 4... Qxd1+ {[%clk 0:02:34.3]} 5. Nxd1 {[%clk
0:02:58.1]} 5... e5 {[%clk 0:02:33.1]} 6. Bc4 {[%clk 0:02:51.6]} 6... Nf6 {[%clk
0:02:27]} 7. f3 {[%clk 0:02:50.5]} 7... Bb4+ {[%clk 0:02:24.5]} 8. c3 {[%clk
0:02:49.8]} 8... Bc5 {[%clk 0:02:21.6]} 9. Be3 {[%clk 0:02:50.2]} 9... Bxe3
{[%clk 0:02:20.2]} 10. Nxe3 {[%clk 0:02:49.4]} 10... c6 {[%clk 0:02:20.6]} 11.
O-O-O {[%clk 0:02:48.7]} 11... O-O {[%clk 0:02:17.1]} 12. Ne2 {[%clk 0:02:48.4]}
12... b5 {[%clk 0:02:13]} 13. Bb3 {[%clk 0:02:47.8]} 13... a5 {[%clk 0:02:12.9]}
14. g4 {[%clk 0:02:45.9]} 14... a4 {[%clk 0:02:08.7]} 15. Bc2 {[%clk 0:02:45.9]}
15... Be6 {[%clk 0:02:01.7]} 16. Kb1 {[%clk 0:02:45.4]} 16... Na6 {[%clk
0:01:57.4]} 17. Rd6 {[%clk 0:02:42.1]} 17... Rfc8 {[%clk 0:01:51.8]} 18. Rhd1
{[%clk 0:02:39.1]} 18... Ne8 {[%clk 0:01:51.3]} 19. R6d2 {[%clk 0:02:36.1]}
19... b4 {[%clk 0:01:34]} 20. c4 {[%clk 0:02:28.9]} 20... Nc5 {[%clk 0:01:30.5]}
21. Nf5 {[%clk 0:02:27.1]} 21... b3 {[%clk 0:01:22.1]} 22. Ne7+ {[%clk
0:02:20.7]} 22... Kf8 {[%clk 0:01:18.6]} 23. Nxc8 {[%clk 0:02:21.1]} 23... bxc2+
{[%clk 0:01:17.3]} 24. Kxc2 {[%clk 0:02:20.9]} 24... Rxc8 {[%clk 0:01:17.8]} 25.
Kc3 {[%clk 0:02:18.9]} 25... Ke7 {[%clk 0:01:05.8]} 26. b4 {[%clk 0:02:15.3]}
26... axb3 {[%clk 0:01:03.6]} 27. axb3 {[%clk 0:02:15.2]} 27... Rb8 {[%clk
0:01:02.3]} 28. Rb2 {[%clk 0:02:14.5]} 28... Nd6 {[%clk 0:00:57.8]} 29. Rbb1
{[%clk 0:02:07]} 29... Na6 {[%clk 0:00:47.9]} 30. Ng3 {[%clk 0:02:01.4]} 30...
g6 {[%clk 0:00:46.3]} 31. Ra1 {[%clk 0:02:00.7]} 31... Nc5 {[%clk 0:00:21.3]}
32. Rdb1 {[%clk 0:01:58.3]} 32... Rb7 {[%clk 0:00:16.4]} 33. b4 {[%clk
0:01:56.4]} 33... Nd7 {[%clk 0:00:15.4]} 34. c5 {[%clk 0:01:55.6]} 34... Nb5+
{[%clk 0:00:14.7]} 35. Kd2 {[%clk 0:01:55.6]} 35... Nd4 {[%clk 0:00:13.1]} 36.
Ra3 {[%clk 0:01:33.7]} 36... Nxc5 {[%clk 0:00:11.8]} 37. Ne2 {[%clk 0:01:29.8]}
37... Nxe2 {[%clk 0:00:10]} 38. Kxe2 {[%clk 0:01:29.6]} 38... Nd7 {[%clk
0:00:09.8]} 39. Rc3 {[%clk 0:01:26.7]} 39... Rb6 {[%clk 0:00:08.9]} 40. Rbc1
{[%clk 0:01:24.9]} 40... Nb8 {[%clk 0:00:08.9]} 41. Rb1 {[%clk 0:01:24.2]} 41...
Bd7 {[%clk 0:00:08.1]} 42. Rc5 {[%clk 0:01:21.4]} 42... f6 {[%clk 0:00:07.5]}
43. Rc2 {[%clk 0:01:19.3]} 43... Na6 {[%clk 0:00:07.1]} 44. Rcb2 {[%clk
0:01:19.5]} 44... Nc7 {[%clk 0:00:07.3]} 45. Ke3 {[%clk 0:00:51.9]} 45... Ne6
{[%clk 0:00:07.2]} 46. h4 {[%clk 0:00:47.7]} 46... g5 {[%clk 0:00:06.3]} 47.
hxg5 {[%clk 0:00:46.9]} 47... Nxg5 {[%clk 0:00:06.2]} 48. Rc1 {[%clk 0:00:44.1]}
48... Rb5 {[%clk 0:00:03.5]} 49. Rc5 {[%clk 0:00:42.4]} 1-0

[Event "*** Titled Tuesday Blitz"]
[Site "Chess.com"]
[Date "2021.02.09"]
[Round "6"]
[White "Chessbard1972"]
[Black "theultimatehunter"]
[Result "0-1"]
[WhiteElo "2392"]
[BlackElo "2247"]
[TimeControl "180+1"]
[EndTime "11:08:39 PST"]
[Termination "theultimatehunter won on time"]

1. d4 {[%clk 0:03:00.9]} 1... d5 {[%clk 0:02:59.1]} 2. Nf3 {[%clk 0:02:58.9]}
2... Nf6 {[%clk 0:02:58.9]} 3. c4 {[%clk 0:02:58.3]} 3... e6 {[%clk 0:02:59.2]}
4. Bg5 {[%clk 0:02:57]} 4... h6 {[%clk 0:02:57.4]} 5. Bh4 {[%clk 0:02:55.3]}
5... Be7 {[%clk 0:02:57]} 6. e3 {[%clk 0:02:54.3]} 6... O-O {[%clk 0:02:55.9]}
7. Nc3 {[%clk 0:02:53.6]} 7... b6 {[%clk 0:02:54.7]} 8. cxd5 {[%clk 0:02:53.2]}
8... exd5 {[%clk 0:02:54.6]} 9. Bd3 {[%clk 0:02:52]} 9... c5 {[%clk 0:02:53]}
10. O-O {[%clk 0:02:30.2]} 10... Nc6 {[%clk 0:02:50.6]} 11. dxc5 {[%clk
0:02:21.9]} 11... bxc5 {[%clk 0:02:47.9]} 12. Bxf6 {[%clk 0:02:21.2]} 12... Bxf6
{[%clk 0:02:47.8]} 13. Nxd5 {[%clk 0:02:20.5]} 13... Bxb2 {[%clk 0:02:31.9]} 14.
Rb1 {[%clk 0:02:19.6]} 14... Rb8 {[%clk 0:02:19.3]} 15. e4 {[%clk 0:02:04.5]}
15... Be6 {[%clk 0:02:10.6]} 16. Qc2 {[%clk 0:01:47.1]} 16... Nd4 {[%clk
0:02:03]} 17. Nxd4 {[%clk 0:01:43.6]} 17... Bxd4 {[%clk 0:02:03.9]} 18. Bc4
{[%clk 0:01:34.9]} 18... Qh4 {[%clk 0:01:51.8]} 19. g3 {[%clk 0:01:20.3]} 19...
Qg5 {[%clk 0:01:38.2]} 20. Kg2 {[%clk 0:01:10.3]} 20... h5 {[%clk 0:01:21.7]}
21. f4 {[%clk 0:01:08.2]} 21... Qg4 {[%clk 0:01:20]} 22. f5 {[%clk 0:01:04.9]}
22... Bxd5 {[%clk 0:01:11.6]} 23. Bxd5 {[%clk 0:01:03.9]} 23... h4 {[%clk
0:01:11.9]} 24. Rf4 {[%clk 0:00:54]} 24... h3+ {[%clk 0:01:11]} 25. Kh1 {[%clk
0:00:48.4]} 25... Rxb1+ {[%clk 0:01:06.5]} 26. Qxb1 {[%clk 0:00:47.5]} 26... Qe2
{[%clk 0:01:07.2]} 27. Qf1 {[%clk 0:00:43]} 27... Qxf1+ {[%clk 0:00:24.3]} 28.
Rxf1 {[%clk 0:00:42.6]} 28... Rb8 {[%clk 0:00:25.2]} 29. g4 {[%clk 0:00:37.4]}
29... Be5 {[%clk 0:00:20.6]} 30. g5 {[%clk 0:00:09.1]} 30... Kf8 {[%clk
0:00:19.7]} 31. g6 {[%clk 0:00:07.7]} 31... f6 {[%clk 0:00:19.3]} 32. Bb3 {[%clk
0:00:07.4]} 32... c4 {[%clk 0:00:16.1]} 33. Bxc4 {[%clk 0:00:07]} 33... Rb2
{[%clk 0:00:17]} 34. Rc1 {[%clk 0:00:05.8]} 34... Rxh2+ {[%clk 0:00:16.7]} 35.
Kg1 {[%clk 0:00:05.9]} 35... Rg2+ {[%clk 0:00:16.2]} 36. Kh1 {[%clk 0:00:06]}
36... Rh2+ {[%clk 0:00:16]} 37. Kg1 {[%clk 0:00:06.1]} 37... Rg2+ {[%clk
0:00:16.2]} 38. Kh1 {[%clk 0:00:06.5]} 38... Rg4 {[%clk 0:00:16.3]} 39. Bd5
{[%clk 0:00:05.6]} 39... h2 {[%clk 0:00:15.5]} 40. Bc6 {[%clk 0:00:03.3]} 40...
Ke7 {[%clk 0:00:15.6]} 41. Bd5 {[%clk 0:00:03.1]} 41... Kd6 {[%clk 0:00:16]} 42.
Rd1 {[%clk 0:00:02.5]} 42... Kc5 {[%clk 0:00:15.4]} 43. Ba8 {[%clk 0:00:01.8]}
43... Kb4 {[%clk 0:00:15.3]} 44. Bd5 {[%clk 0:00:01.7]} 44... Kc3 {[%clk
0:00:15.7]} 0-1